[Event "NJSK 2021 Jeugd B"]
[Site "Almelo, Netherlands"]
[Date "2021.08.02"]
[Round "2.6"]
[White "Boeren, Jurriaan"]
[Black "Goudriaan, Rafael"]
[Result "1-0"]
[TimeControl "90min/40moves + 30min + 30sec/move"]
[WhiteElo "1614"]
[BlackElo "1677"]

1. e4 {[%clk 01:30:58]} {[%emt 00:00:01]} e5 {[%clk 01:30:46]} {[%emt
00:00:15]} 2. Nf3 {[%clk 01:31:22]} {[%emt 00:00:06]} Nc6 {[%clk 01:31:10]}
{[%emt 00:00:06]} 3. d4 {[%clk 01:31:48]} {[%emt 00:00:04]} exd4 {[%clk
01:31:06]} {[%emt 00:00:34]} 4. Nxd4 {[%clk 01:32:10]} {[%emt 00:00:08]} d6
{[%clk 01:31:08]} {[%emt 00:00:28]} 5. Nc3 {[%clk 01:30:33]} {[%emt 00:02:06]}
Bd7 {[%clk 01:30:23]} {[%emt 00:01:14]} 6. Be3 {[%clk 01:28:13]} {[%emt
00:02:51]} Nf6 {[%clk 01:30:29]} {[%emt 00:00:24]} 7. f3 {[%clk 01:26:48]}
{[%emt 00:01:56]} g6 {[%clk 01:29:25]} {[%emt 00:01:33]} 8. Qd2 {[%clk
01:25:07]} {[%emt 00:02:11]} Bg7 {[%clk 01:28:43]} {[%emt 00:01:09]} 9. Nxc6
{[%clk 01:21:36]} {[%emt 00:04:04]} Bxc6 {[%clk 01:28:51]} {[%emt 00:00:23]} 10.
Bc4 {[%clk 01:21:01]} {[%emt 00:01:05]} Qe7 {[%clk 01:28:17]} {[%emt 00:01:04]}
11. O-O-O {[%clk 01:19:02]} {[%emt 00:02:29]} a6 {[%clk 01:27:36]} {[%emt
00:01:11]} 12. Rhe1 {[%clk 01:14:09]} {[%emt 00:05:23]} b5 {[%clk 01:27:33]}
{[%emt 00:00:33]} 13. Bd5 {[%clk 01:13:12]} {[%emt 00:01:26]} Qd7 {[%clk
01:24:56]} {[%emt 00:03:07]} 14. Bxc6 {[%clk 01:04:46]} {[%emt 00:08:56]} Qxc6
{[%clk 01:25:24]} {[%emt 00:00:02]} 15. Nd5 {[%clk 00:56:07]} {[%emt 00:09:10]}
Nd7 {[%clk 01:23:24]} {[%emt 00:02:28]} 16. Bh6 {[%clk 00:44:14]} {[%emt
00:12:25]} Kf8 {[%clk 01:23:10]} {[%emt 00:00:42]} 17. g4 {[%clk 00:27:45]}
{[%emt 00:17:00]} Qc4 {[%clk 01:19:52]} {[%emt 00:03:45]} 18. b3 {[%clk
00:24:23]} {[%emt 00:03:56]} Qc5 {[%clk 01:18:30]} {[%emt 00:01:51]} 19. Kb1
{[%clk 00:21:29]} {[%emt 00:03:25]} c6 {[%clk 01:10:47]} {[%emt 00:08:13]} 20.
Nc7 {[%clk 00:12:49]} {[%emt 00:09:10]} Ra7 {[%clk 01:09:03]} {[%emt 00:02:13]}
21. Bxg7+ {[%clk 00:12:50]} {[%emt 00:00:29]} Kxg7 {[%clk 01:09:21]} {[%emt
00:00:11]} 22. b4 {[%clk 00:11:37]} {[%emt 00:01:45]} Qb6 {[%clk 01:07:25]}
{[%emt 00:02:23]} 23. Qc3+ {[%clk 00:11:29]} {[%emt 00:00:40]} f6 {[%clk
01:06:16]} {[%emt 00:01:39]} 24. Ne6+ {[%clk 00:11:18]} {[%emt 00:00:41]} Kf7
{[%clk 01:06:15]} {[%emt 00:00:30]} 25. Rxd6 {[%clk 00:10:31]} {[%emt
00:01:18]} Ne5 {[%clk 01:06:07]} {[%emt 00:00:38]} 26. f4 {[%clk 00:07:50]}
{[%emt 00:03:11]} Nxg4 {[%clk 01:02:45]} {[%emt 00:03:51]} 27. h3 {[%clk
00:07:36]} {[%emt 00:00:45]} Qb8 {[%clk 00:59:50]} {[%emt 00:03:25]} 28. Red1
{[%clk 00:07:18]} {[%emt 00:00:48]} Re8 {[%clk 00:59:25]} {[%emt 00:00:55]} 29.
Nd8+ {[%clk 00:06:08]} {[%emt 00:01:41]} Kg8 {[%clk 00:57:56]} {[%emt
00:01:59]} 30. hxg4 {[%clk 00:05:48]} {[%emt 00:00:49]} Rae7 {[%clk 00:57:10]}
{[%emt 00:01:15]} 31. Nxc6 {[%clk 00:04:02]} {[%emt 00:02:17]} Rc7 {[%clk
00:57:04]} {[%emt 00:00:36]} 32. Qb3+ {[%clk 00:04:13]} {[%emt 00:00:19]} 1-0

[Event "NJSK 2021 Jeugd B"]
[Site "Almelo, Netherlands"]
[Date "2021.08.02"]
[Round "2.7"]
[White "Arnold, Lorin"]
[Black "Groen, Jari"]
[Result "0-1"]
[TimeControl "90min/40moves + 30min + 30sec/move"]
[WhiteElo "1651"]
[BlackElo "1423"]

1. f4 {[%clk 01:29:52]} {[%emt 00:01:07]} c5 {[%clk 01:29:52]} {[%emt
00:01:09]} 2. Nf3 {[%clk 01:28:55]} {[%emt 00:01:26]} Nc6 {[%clk 01:27:54]}
{[%emt 00:02:29]} 3. b3 {[%clk 01:26:30]} {[%emt 00:02:54]} d5 {[%clk
01:25:10]} {[%emt 00:03:15]} 4. Bb2 {[%clk 01:26:41]} {[%emt 00:00:19]} Nf6
{[%clk 01:24:46]} {[%emt 00:00:53]} 5. e3 {[%clk 01:26:16]} {[%emt 00:00:55]}
a6 {[%clk 01:22:38]} {[%emt 00:02:39]} 6. d4 {[%clk 01:25:19]} {[%emt
00:01:27]} e6 {[%clk 01:20:45]} {[%emt 00:02:23]} 7. Be2 {[%clk 01:24:16]}
{[%emt 00:01:32]} Bd6 {[%clk 01:20:17]} {[%emt 00:00:59]} 8. O-O {[%clk
01:24:05]} {[%emt 00:00:41]} O-O {[%clk 01:18:42]} {[%emt 00:02:05]} 9. Ne5
{[%clk 01:23:49]} {[%emt 00:00:45]} Ne7 {[%clk 01:14:09]} {[%emt 00:05:04]} 10.
Nd2 {[%clk 01:23:31]} {[%emt 00:00:47]} Nf5 {[%clk 01:10:54]} {[%emt 00:03:45]}
11. Rf3 {[%clk 01:23:08]} {[%emt 00:00:53]} cxd4 {[%clk 01:07:05]} {[%emt
00:04:19]} 12. exd4 {[%clk 01:22:47]} {[%emt 00:00:52]} Be7 {[%clk 01:05:38]}
{[%emt 00:01:57]} 13. c3 {[%clk 01:22:28]} {[%emt 00:00:49]} Nd6 {[%clk
01:04:23]} {[%emt 00:01:45]} 14. Bd3 {[%clk 01:22:39]} {[%emt 00:00:19]} Nfe4
{[%clk 01:01:43]} {[%emt 00:03:09]} 15. Rh3 {[%clk 01:22:44]} {[%emt 00:00:25]}
f5 {[%clk 00:44:57]} {[%emt 00:17:17]} 16. Ndf3 {[%clk 01:17:54]} {[%emt
00:05:19]} Bd7 {[%clk 00:42:17]} {[%emt 00:03:11]} 17. Nxd7 {[%clk 01:15:38]}
{[%emt 00:02:46]} Qxd7 {[%clk 00:42:17]} {[%emt 00:00:30]} 18. Ne5 {[%clk
01:16:00]} {[%emt 00:00:08]} Qe8 {[%clk 00:38:09]} {[%emt 00:04:37]} 19. Rc1
{[%clk 01:15:30]} {[%emt 00:01:00]} Nf7 {[%clk 00:36:01]} {[%emt 00:02:38]} 20.
g4 {[%clk 01:13:36]} {[%emt 00:02:24]} Nxe5 {[%clk 00:33:12]} {[%emt 00:03:19]}
21. fxe5 {[%clk 01:12:14]} {[%emt 00:01:53]} Nf2 {[%clk 00:26:50]} {[%emt
00:06:51]} 22. Kxf2 {[%clk 01:10:35]} {[%emt 00:02:09]} fxg4+ {[%clk 00:27:06]}
{[%emt 00:00:14]} 23. Ke1 {[%clk 01:10:18]} {[%emt 00:00:47]} gxh3 {[%clk
00:27:17]} {[%emt 00:00:19]} 24. Qg4 {[%clk 01:10:47]} {[%emt 00:00:02]} Qf7
{[%clk 00:21:43]} {[%emt 00:06:04]} 25. Rc2 {[%clk 01:11:15]} {[%emt 00:00:01]}
Rac8 {[%clk 00:19:17]} {[%emt 00:02:57]} 26. Qxh3 {[%clk 01:11:35]} {[%emt
00:00:10]} h6 {[%clk 00:17:17]} {[%emt 00:02:30]} 27. Rg2 {[%clk 01:11:55]}
{[%emt 00:00:09]} Bg5 {[%clk 00:16:09]} {[%emt 00:01:39]} 28. Rxg5 {[%clk
01:11:39]} {[%emt 00:00:46]} Qf2+ {[%clk 00:14:23]} {[%emt 00:02:16]} 29. Kd1
{[%clk 01:12:07]} {[%emt 00:00:01]} hxg5 {[%clk 00:12:57]} {[%emt 00:01:56]} 30.
Qh7+ {[%clk 01:10:02]} {[%emt 00:02:35]} Kf7 {[%clk 00:13:22]} {[%emt
00:00:06]} 31. Bg6+ {[%clk 01:08:56]} {[%emt 00:01:35]} Ke7 {[%clk 00:13:44]}
{[%emt 00:00:08]} 32. Ba3+ {[%clk 01:04:57]} {[%emt 00:04:29]} Kd8 {[%clk
00:12:29]} {[%emt 00:01:46]} 33. Bd3 {[%clk 01:00:58]} {[%emt 00:04:28]} Rf7
{[%clk 00:09:28]} {[%emt 00:03:31]} 34. Bc5 {[%clk 00:55:13]} {[%emt 00:06:14]}
Rxc5 {[%clk 00:05:08]} {[%emt 00:04:51]} 35. dxc5 {[%clk 00:55:24]} {[%emt
00:00:20]} Qxc5 {[%clk 00:04:42]} {[%emt 00:00:56]} 36. Qg6 {[%clk 00:55:08]}
{[%emt 00:00:45]} Qg1+ {[%clk 00:02:29]} {[%emt 00:02:44]} 37. Kd2 {[%clk
00:54:55]} {[%emt 00:00:43]} Qxh2+ {[%clk 00:02:29]} {[%emt 00:00:30]} 38. Be2
{[%clk 00:54:44]} {[%emt 00:00:41]} Qf4+ {[%clk 00:02:37]} {[%emt 00:00:21]} 39.
Kd1 {[%clk 00:55:12]} {[%emt 00:00:02]} Ke7 {[%emt 00:01:10]} 40. c4 {[%clk
00:54:55]} {[%emt 00:00:47]} Qxe5 {[%clk 00:01:35]} {[%emt 00:00:53]} 41. cxd5
{[%clk 00:55:15]} {[%emt 00:00:09]} Qxd5+ {[%clk 00:01:35]} {[%emt 00:00:30]}
42. Ke1 {[%clk 00:55:43]} {[%emt 00:00:01]} Qf5 {[%clk 00:30:16]} {[%emt
00:01:50]} 43. Qh5 {[%clk 01:26:05]} {[%emt 00:00:08]} Qf2+ {[%clk 00:30:26]}
{[%emt 00:00:20]} 44. Kd2 {[%clk 01:26:09]} {[%emt 00:00:25]} Qf4+ {[%clk
00:29:15]} {[%emt 00:01:42]} 45. Kd1 {[%clk 01:26:37]} {[%emt 00:00:03]} Rf8
{[%clk 00:28:31]} {[%emt 00:01:13]} 46. Qg6 {[%clk 01:26:22]} {[%emt 00:00:45]}
Rd8+ {[%clk 00:28:11]} {[%emt 00:00:50]} 47. Ke1 {[%clk 01:26:51]} {[%emt
00:00:01]} Qg3+ {[%clk 00:28:19]} {[%emt 00:00:22]} 48. Kf1 {[%clk 01:27:16]}
{[%emt 00:00:05]} Rf8+ {[%clk 00:28:41]} {[%emt 00:00:08]} 0-1

[Event "NJSK 2021 Jeugd B"]
[Site "Almelo, Netherlands"]
[Date "2021.08.02"]
[Round "2.8"]
[White "Franke, Daniel"]
[Black "Zubair, Saad"]
[Result "0-1"]
[TimeControl "90min/40moves + 30min + 30sec/move"]
[WhiteElo "1554"]
[BlackElo "1645"]

1. e4 {[%clk 01:30:59]} c5 {[%clk 01:30:53]} {[%emt 00:00:07]} 2. Nf3 {[%clk
01:31:25]} {[%emt 00:00:04]} e6 {[%clk 01:31:19]} {[%emt 00:00:05]} 3. Nc3
{[%clk 01:31:45]} {[%emt 00:00:10]} Nf6 {[%clk 01:31:35]} {[%emt 00:00:13]} 4.
Bc4 {[%clk 01:32:03]} {[%emt 00:00:13]} d5 {[%clk 01:30:25]} {[%emt 00:01:40]}
5. exd5 {[%clk 01:32:15]} {[%emt 00:00:17]} exd5 {[%clk 01:30:49]} {[%emt
00:00:06]} 6. Bb3 {[%clk 01:32:16]} {[%emt 00:00:29]} Be7 {[%clk 01:27:23]}
{[%emt 00:03:56]} 7. d3 {[%clk 01:31:26]} {[%emt 00:01:21]} O-O {[%clk
01:27:36]} {[%emt 00:00:17]} 8. O-O {[%clk 01:31:49]} {[%emt 00:00:07]} Bg4
{[%clk 01:27:31]} {[%emt 00:00:35]} 9. h3 {[%clk 01:28:35]} {[%emt 00:03:42]}
Bh5 {[%clk 01:27:45]} {[%emt 00:00:17]} 10. Bf4 {[%clk 01:28:09]} {[%emt
00:00:56]} a6 {[%clk 01:27:20]} {[%emt 00:00:56]} 11. Ne2 {[%clk 01:13:50]}
{[%emt 00:14:48]} Bxf3 {[%clk 01:21:52]} {[%emt 00:05:57]} 12. gxf3 {[%clk
01:14:01]} {[%emt 00:00:21]} Qc8 {[%clk 01:22:01]} {[%emt 00:00:21]} 13. Nc3
{[%clk 00:41:10]} {[%emt 00:33:20]} c4 {[%clk 01:20:24]} {[%emt 00:02:07]} 14.
dxc4 {[%clk 00:41:20]} {[%emt 00:00:19]} dxc4 {[%clk 01:20:43]} {[%emt
00:00:13]} 15. Qe2 {[%clk 00:41:44]} {[%emt 00:00:06]} Nc6 {[%clk 00:39:18]}
{[%emt 00:41:54]} 16. Qxc4 {[%clk 00:26:14]} {[%emt 00:15:59]} Qxh3 {[%clk
00:35:14]} {[%emt 00:04:34]} 17. Bg3 {[%clk 00:22:25]} {[%emt 00:04:20]} g5
{[%clk 00:19:56]} {[%emt 00:15:47]} 18. Nd5 {[%clk 00:08:48]} {[%emt 00:14:08]}
h5 {[%clk 00:10:46]} {[%emt 00:09:40]} 19. Qd3 {[%clk 00:06:53]} {[%emt
00:02:24]} Rac8 {[%clk 00:08:13]} {[%emt 00:03:03]} 20. Nxf6+ {[%clk 00:06:19]}
{[%emt 00:01:04]} Bxf6 {[%clk 00:08:11]} {[%emt 00:00:32]} 21. Qg6+ {[%clk
00:06:43]} {[%emt 00:00:07]} Bg7 {[%clk 00:08:29]} {[%emt 00:00:12]} 22. Qxg5
{[%clk 00:06:07]} {[%emt 00:01:06]} Nd4 {[%clk 00:08:01]} {[%emt 00:00:59]} 0-1

[Event "NJSK 2021 Jeugd B"]
[Site "Almelo, Netherlands"]
[Date "2021.08.03"]
[Round "3.1"]
[White "Pham, Khoi"]
[Black "Boghossian, Wahe"]
[Result "1-0"]
[TimeControl "90min/40moves + 30min + 30sec/move"]
[WhiteElo "2128"]
[BlackElo "1915"]

1. d4 {[%clk 01:30:47]} {[%emt 00:00:12]} Nf6 {[%clk 01:30:55]} {[%emt
00:00:05]} 2. c4 {[%clk 01:31:12]} {[%emt 00:00:05]} g6 {[%clk 01:31:10]}
{[%emt 00:00:14]} 3. Nc3 {[%clk 01:31:36]} {[%emt 00:00:07]} Bg7 {[%clk
01:31:19]} {[%emt 00:00:21]} 4. e4 {[%clk 01:31:54]} {[%emt 00:00:12]} d6
{[%clk 01:30:47]} {[%emt 00:01:02]} 5. h3 {[%clk 01:32:15]} {[%emt 00:00:09]}
O-O {[%clk 01:30:56]} {[%emt 00:00:22]} 6. Be3 {[%clk 01:32:41]} {[%emt
00:00:05]} Na6 {[%clk 01:31:07]} {[%emt 00:00:19]} 7. g4 {[%clk 01:29:39]}
{[%emt 00:03:31]} c5 {[%clk 01:25:17]} {[%emt 00:06:20]} 8. d5 {[%clk
01:29:03]} {[%emt 00:01:06]} e6 {[%clk 01:22:57]} {[%emt 00:02:50]} 9. Bd3
{[%clk 01:26:14]} {[%emt 00:03:20]} exd5 {[%clk 01:21:24]} {[%emt 00:02:03]} 10.
exd5 {[%clk 01:26:13]} {[%emt 00:00:31]} Nc7 {[%clk 01:16:16]} {[%emt
00:05:37]} 11. a4 {[%clk 01:17:38]} {[%emt 00:09:05]} Nd7 {[%clk 01:10:33]}
{[%emt 00:06:12]} 12. Nf3 {[%clk 01:08:01]} {[%emt 00:10:08]} Ne5 {[%clk
01:08:08]} {[%emt 00:02:55]} 13. Nxe5 {[%clk 01:08:01]} {[%emt 00:00:29]} Bxe5
{[%clk 01:07:54]} {[%emt 00:00:43]} 14. O-O {[%clk 01:04:31]} {[%emt 00:03:59]}
Qh4 {[%clk 01:03:37]} {[%emt 00:04:35]} 15. Kg2 {[%clk 00:56:45]} {[%emt
00:08:28]} f5 {[%clk 01:00:28]} {[%emt 00:03:39]} 16. gxf5 {[%clk 00:51:32]}
{[%emt 00:05:44]} Rxf5 {[%clk 00:41:35]} {[%emt 00:19:22]} 17. Bxf5 {[%clk
00:41:23]} {[%emt 00:10:39]} Bxf5 {[%clk 00:41:53]} {[%emt 00:00:12]} 18. Rh1
{[%clk 00:41:14]} {[%emt 00:00:39]} Rf8 {[%clk 00:36:19]} {[%emt 00:06:04]} 19.
f4 {[%clk 00:37:57]} {[%emt 00:03:47]} Bxc3 {[%clk 00:11:55]} {[%emt 00:24:55]}
20. bxc3 {[%clk 00:38:08]} {[%emt 00:00:19]} Be4+ {[%clk 00:11:16]} {[%emt
00:01:09]} 21. Kh2 {[%clk 00:37:37]} {[%emt 00:01:00]} Bxh1 {[%clk 00:10:51]}
{[%emt 00:00:54]} 22. Qxh1 {[%clk 00:37:59]} {[%emt 00:00:08]} Re8 {[%clk
00:10:30]} {[%emt 00:00:50]} 23. Qf3 {[%clk 00:36:44]} {[%emt 00:01:47]} Qe7
{[%clk 00:10:18]} {[%emt 00:00:40]} 24. Bf2 {[%clk 00:24:02]} {[%emt 00:13:13]}
Qe2 {[%clk 00:08:35]} {[%emt 00:02:07]} 25. Qxe2 {[%clk 00:23:53]} {[%emt
00:00:46]} Rxe2 {[%clk 00:09:03]} {[%emt 00:00:01]} 26. Kg3 {[%clk 00:24:15]}
{[%emt 00:00:08]} Re4 {[%clk 00:08:30]} {[%emt 00:00:59]} 27. Rb1 {[%clk
00:23:24]} {[%emt 00:01:25]} b6 {[%clk 00:02:30]} {[%emt 00:06:30]} 28. a5
{[%clk 00:22:49]} {[%emt 00:01:06]} Rxc4 {[%clk 00:01:41]} {[%emt 00:01:19]} 29.
axb6 {[%clk 00:22:23]} {[%emt 00:00:55]} axb6 {[%clk 00:02:08]} {[%emt
00:00:03]} 30. Rxb6 {[%clk 00:22:31]} {[%emt 00:00:22]} Rxc3+ {[%clk 00:01:39]}
{[%emt 00:00:59]} 31. Kg4 {[%clk 00:22:30]} {[%emt 00:00:31]} Nxd5 {[%clk
00:01:39]} {[%emt 00:00:30]} 32. Rxd6 {[%clk 00:22:13]} {[%emt 00:00:47]} Ne3+
{[%clk 00:01:16]} {[%emt 00:00:53]} 33. Kg5 {[%clk 00:17:33]} {[%emt 00:05:10]}
Nf5 {[%clk 00:00:44]} {[%emt 00:01:02]} 34. Rd7 {[%clk 00:17:53]} {[%emt
00:00:11]} Ra3 {[%clk 00:00:34]} {[%emt 00:00:39]} 35. Bxc5 {[%clk 00:17:29]}
{[%emt 00:00:54]} Ra8 {[%clk 00:01:03]} {[%emt 00:00:02]} 36. h4 {[%clk
00:16:30]} {[%emt 00:01:29]} Ng7 {[%clk 00:01:11]} {[%emt 00:00:21]} 37. Bd6
{[%clk 00:14:14]} {[%emt 00:02:47]} Ra5+ {[%clk 00:01:08]} {[%emt 00:00:34]} 38.
Be5 {[%clk 00:14:30]} {[%emt 00:00:13]} Nh5 {[%clk 00:00:36]} {[%emt 00:01:02]}
39. Rb7 {[%clk 00:12:49]} {[%emt 00:02:11]} Ra8 {[%clk 00:00:35]} {[%emt
00:00:31]} 40. Kh6 {[%clk 00:12:55]} {[%emt 00:00:23]} Ng3 {[%clk 00:00:31]}
{[%emt 00:00:35]} 41. Rg7+ {[%clk 00:12:57]} {[%emt 00:00:27]} Kf8 {[%clk
00:00:50]} {[%emt 00:00:12]} 42. Bd6+ {[%clk 00:12:28]} {[%emt 00:00:29]} 1-0

[Event "NJSK 2021 Jeugd B"]
[Site "Almelo, Netherlands"]
[Date "2021.08.03"]
[Round "3.2"]
[White "Van Kuijk, Vadim"]
[Black "Slagboom, Leandro"]
[Result "0-1"]
[TimeControl "90min/40moves + 30min + 30sec/move"]
[WhiteElo "1722"]
[BlackElo "1996"]

1. e4 {[%clk 01:30:59]} c5 {[%clk 01:30:54]} {[%emt 00:00:07]} 2. Nc3 {[%clk
01:30:49]} {[%emt 00:00:40]} Nc6 {[%clk 01:31:18]} {[%emt 00:00:06]} 3. f4
{[%clk 01:31:07]} {[%emt 00:00:11]} g6 {[%clk 01:31:37]} {[%emt 00:00:11]} 4.
Nf3 {[%clk 01:31:26]} {[%emt 00:00:10]} Bg7 {[%clk 01:31:55]} {[%emt 00:00:12]}
5. Bb5 {[%clk 01:27:36]} {[%emt 00:04:21]} Nd4 {[%clk 01:32:03]} {[%emt
00:00:23]} 6. Bc4 {[%clk 01:27:17]} {[%emt 00:00:48]} e6 {[%clk 01:30:45]}
{[%emt 00:01:47]} 7. d3 {[%clk 01:25:56]} {[%emt 00:01:52]} Ne7 {[%clk
01:30:15]} {[%emt 00:00:59]} 8. O-O {[%clk 01:21:14]} {[%emt 00:05:11]} O-O
{[%clk 01:30:02]} {[%emt 00:00:43]} 9. e5 {[%clk 01:12:43]} {[%emt 00:09:02]}
d5 {[%clk 01:25:08]} {[%emt 00:05:24]} 10. exd6 {[%clk 01:12:07]} {[%emt
00:01:06]} Nef5 {[%clk 01:22:12]} {[%emt 00:03:26]} 11. Ne4 {[%clk 01:12:04]}
{[%emt 00:00:32]} b5 {[%clk 01:19:10]} {[%emt 00:03:32]} 12. Bb3 {[%clk
01:11:43]} {[%emt 00:00:52]} Qb6 {[%clk 01:17:45]} {[%emt 00:01:55]} 13. Kh1
{[%clk 01:08:52]} {[%emt 00:03:20]} Bb7 {[%clk 01:11:51]} {[%emt 00:06:25]} 14.
Ne5 {[%clk 00:59:38]} {[%emt 00:09:44]} c4 {[%clk 00:57:29]} {[%emt 00:14:52]}
15. c3 {[%clk 00:50:30]} {[%emt 00:09:37]} cxb3 {[%clk 00:47:37]} {[%emt
00:10:22]} 16. cxd4 {[%clk 00:42:07]} {[%emt 00:08:53]} Qxd4 {[%clk 00:43:54]}
{[%emt 00:04:13]} 17. Nf3 {[%clk 00:29:36]} {[%emt 00:13:01]} Qb6 {[%clk
00:42:22]} {[%emt 00:02:02]} 18. Qxb3 {[%clk 00:16:07]} {[%emt 00:13:59]} Nxd6
{[%clk 00:40:50]} {[%emt 00:02:02]} 19. Nxd6 {[%clk 00:13:29]} {[%emt
00:03:09]} Qxd6 {[%clk 00:40:45]} {[%emt 00:00:35]} 20. Be3 {[%clk 00:13:17]}
{[%emt 00:00:41]} a6 {[%clk 00:38:49]} {[%emt 00:02:26]} 21. Rac1 {[%clk
00:12:23]} {[%emt 00:01:25]} Rfd8 {[%clk 00:37:42]} {[%emt 00:01:36]} 22. d4
{[%clk 00:08:24]} {[%emt 00:04:30]} Bxf3 {[%clk 00:34:49]} {[%emt 00:03:23]} 23.
Rxf3 {[%clk 00:08:46]} {[%emt 00:00:08]} Bxd4 {[%clk 00:33:28]} {[%emt
00:01:51]} 24. Rd1 {[%clk 00:06:25]} {[%emt 00:02:51]} Qb6 {[%clk 00:32:38]}
{[%emt 00:01:20]} 25. Bxd4 {[%clk 00:06:35]} {[%emt 00:00:20]} Rxd4 {[%clk
00:32:54]} {[%emt 00:00:14]} 26. Rc1 {[%clk 00:05:25]} {[%emt 00:01:40]} Qd6
{[%clk 00:31:52]} {[%emt 00:01:32]} 27. f5 {[%clk 00:03:59]} {[%emt 00:01:57]}
exf5 {[%clk 00:30:57]} {[%emt 00:01:25]} 28. Rfc3 {[%clk 00:03:51]} {[%emt
00:00:38]} Rd8 {[%clk 00:29:41]} {[%emt 00:01:45]} 29. Rc8 {[%clk 00:03:07]}
{[%emt 00:01:14]} Kg7 {[%clk 00:28:56]} {[%emt 00:01:14]} 30. Rxd8 {[%clk
00:03:20]} {[%emt 00:00:17]} Qxd8 {[%clk 00:29:19]} {[%emt 00:00:08]} 31. h3
{[%clk 00:03:18]} {[%emt 00:00:32]} Qf6 {[%clk 00:27:53]} {[%emt 00:01:55]} 32.
Qe3 {[%clk 00:02:02]} {[%emt 00:01:46]} Re4 {[%clk 00:27:02]} {[%emt 00:01:21]}
33. Qa3 {[%clk 00:02:06]} {[%emt 00:00:26]} Re2 {[%clk 00:26:01]} {[%emt
00:01:30]} 0-1

[Event "NJSK 2021 Jeugd B"]
[Site "Almelo, Netherlands"]
[Date "2021.08.03"]
[Round "3.3"]
[White "Groen, Jari"]
[Black "Achuthan, Dylan"]
[Result "0-1"]
[TimeControl "90min/40moves + 30min + 30sec/move"]
[WhiteElo "1423"]
[BlackElo "1888"]

1. e4 {[%clk 01:30:56]} {[%emt 00:00:03]} Nf6 {[%clk 01:30:48]} {[%emt
00:00:12]} 2. e5 {[%clk 01:30:59]} {[%emt 00:00:27]} Nd5 {[%clk 01:31:17]}
{[%emt 00:00:02]} 3. g3 {[%clk 01:30:40]} {[%emt 00:00:49]} d6 {[%clk
01:31:17]} {[%emt 00:00:30]} 4. exd6 {[%clk 01:30:10]} {[%emt 00:00:59]} Qxd6
{[%clk 01:31:36]} {[%emt 00:00:11]} 5. Bg2 {[%clk 01:29:09]} {[%emt 00:01:31]}
Nc6 {[%clk 01:31:38]} {[%emt 00:00:28]} 6. d4 {[%clk 01:26:17]} {[%emt
00:03:23]} Ndb4 {[%clk 01:31:49]} {[%emt 00:00:19]} 7. a3 {[%clk 01:18:10]}
{[%emt 00:08:38]} Nxc2+ {[%clk 01:11:29]} {[%emt 00:20:49]} 8. Qxc2 {[%clk
01:17:59]} {[%emt 00:00:41]} Nxd4 {[%clk 01:11:27]} {[%emt 00:00:32]} 9. Qd3
{[%clk 01:07:58]} {[%emt 00:10:31]} Bf5 {[%clk 00:44:20]} {[%emt 00:27:37]} 10.
Be4 {[%clk 01:07:19]} {[%emt 00:01:09]} Bxe4 {[%clk 00:41:57]} {[%emt
00:02:53]} 11. Qxe4 {[%clk 01:07:34]} {[%emt 00:00:15]} f5 {[%clk 00:39:55]}
{[%emt 00:02:32]} 12. Qd3 {[%clk 01:00:32]} {[%emt 00:07:32]} Qc6 {[%clk
00:35:21]} {[%emt 00:05:04]} 13. Qxd4 {[%clk 00:42:18]} {[%emt 00:18:44]} Rd8
{[%clk 00:27:35]} {[%emt 00:08:16]} 14. Qe3 {[%clk 00:39:08]} {[%emt 00:03:40]}
Qxh1 {[%clk 00:19:37]} {[%emt 00:08:28]} 15. f4 {[%clk 00:38:41]} {[%emt
00:00:57]} g6 {[%clk 00:17:36]} {[%emt 00:02:30]} 16. Qxa7 {[%clk 00:29:02]}
{[%emt 00:10:09]} Bg7 {[%clk 00:13:53]} {[%emt 00:04:13]} 17. Qa4+ {[%clk
00:26:54]} {[%emt 00:02:39]} c6 {[%clk 00:13:20]} {[%emt 00:01:03]} 18. Be3
{[%clk 00:26:56]} {[%emt 00:00:27]} O-O {[%clk 00:06:49]} {[%emt 00:07:01]} 19.
Nd2 {[%clk 00:22:04]} {[%emt 00:05:23]} Qxh2 {[%clk 00:03:50]} {[%emt
00:03:29]} 20. Qc4+ {[%clk 00:17:38]} {[%emt 00:04:56]} Kh8 {[%clk 00:04:08]}
{[%emt 00:00:12]} 21. O-O-O {[%clk 00:16:37]} {[%emt 00:01:30]} Qxg3 {[%clk
00:03:31]} {[%emt 00:01:08]} 22. Ngf3 {[%clk 00:16:13]} {[%emt 00:00:55]} Rxd2
{[%clk 00:02:40]} {[%emt 00:01:21]} 23. Bxd2 {[%clk 00:15:18]} {[%emt
00:01:25]} Qxf3 {[%clk 00:03:01]} {[%emt 00:00:09]} 24. Qb4 {[%clk 00:14:34]}
{[%emt 00:01:14]} c5 {[%clk 00:01:51]} {[%emt 00:01:40]} 25. Qxc5 {[%clk
00:14:21]} {[%emt 00:00:44]} Qb3 {[%clk 00:01:11]} {[%emt 00:01:10]} 26. Bc3
{[%clk 00:13:49]} {[%emt 00:01:02]} Bxc3 {[%clk 00:01:14]} {[%emt 00:00:28]} 27.
bxc3 {[%clk 00:14:06]} {[%emt 00:00:12]} Qe6 {[%clk 00:01:05]} {[%emt
00:00:38]} 28. a4 {[%clk 00:11:42]} {[%emt 00:02:55]} Rc8 {[%clk 00:01:09]}
{[%emt 00:00:25]} 29. Qb4 {[%clk 00:11:12]} {[%emt 00:00:59]} Qe3+ {[%clk
00:01:00]} {[%emt 00:00:39]} 30. Kc2 {[%clk 00:11:11]} {[%emt 00:00:32]} b6
{[%clk 00:00:46]} {[%emt 00:00:45]} 31. Rd5 {[%clk 00:05:46]} {[%emt 00:05:54]}
Qe2+ {[%clk 00:00:41]} {[%emt 00:00:35]} 32. Kb3 {[%clk 00:05:47]} {[%emt
00:00:28]} Qe6 {[%clk 00:00:45]} {[%emt 00:00:26]} 33. Qd4+ {[%clk 00:05:38]}
{[%emt 00:00:39]} Kg8 {[%clk 00:00:55]} {[%emt 00:00:20]} 34. Kb4 {[%clk
00:04:57]} {[%emt 00:01:12]} Qe1 {[%clk 00:00:46]} {[%emt 00:00:38]} 35. Qxb6
{[%clk 00:04:36]} {[%emt 00:00:51]} Qxc3+ {[%clk 00:00:54]} {[%emt 00:00:23]}
36. Kb5 {[%clk 00:04:57]} {[%emt 00:00:09]} Qc4+ {[%clk 00:01:15]} {[%emt
00:00:08]} 0-1